fUSD/lending_fUSD_20250519
["ID","MTS","AMOUNT","RATE_DAILY","PERIOD"]
[361611796,1747639846177,-481.65,0.00013698,2]
[361611797,1747639846186,-420.0,0.00013698,2]
[361611798,1747639846195,-420.0,0.00013698,2]
[361611799,1747639846204,-1076.99,0.00013698,2]
[361611800,1747639846214,-650.42,0.00013698,2]
[361611801,1747639846225,-420.0,0.00013698,2]
[361611802,1747639846235,-400.0,0.00013698,2]
[361611803,1747639846244,-420.0,0.00013698,2]
[361611804,1747639846258,-300.49172854,0.00013698,2]
[361611805,1747639846267,-420.0,0.00013698,2]
[361611806,1747639846276,-403.02319837,0.00013698,2]
[361611807,1747639846285,-1027.46,0.00013698,2]
[361611808,1747639846294,-1046.25,0.00013698,2]
[361611809,1747639846303,-420.0,0.00013698,2]
[361611810,1747639846313,-420.0,0.00013698,2]
[361611811,1747639846323,-500.0,0.00013698,2]
[361611812,1747639846332,-500.0,0.00013698,2]
[361611813,1747639846344,-500.0,0.00013698,2]
[361611814,1747639846353,-500.0,0.00013698,2]
[361611815,1747639846362,-500.0,0.00013698,2]
[361611816,1747639846372,-500.0,0.00013698,2]
[361611817,1747639846381,-420.0,0.00013698,2]
[361611818,1747639846390,-500.0,0.00013698,2]
[361611819,1747639846399,-500.0,0.00013698,2]
[361611820,1747639846408,-500.0,0.00013698,2]
[361611821,1747639846417,-420.0,0.00013698,2]
[361611822,1747639846426,-2157.78,0.00013698,2]
[361611823,1747639846435,-2145.58,0.00013698,2]
[361611824,1747639846444,-420.0,0.00013698,2]
[361611825,1747639846453,-420.0,0.00013698,2]
[361611826,1747639846463,-420.0,0.00013698,2]
[361611827,1747639846472,-400.49002544,0.00013698,2]
[361611828,1747639846481,-448.29785865,0.00013698,2]
[361611830,1747639846491,-200.0,0.00013698,2]
[361611831,1747639846500,-1050.11,0.00013698,2]
[361611832,1747639846513,-180.876735,0.00013698,2]
[361611833,1747639846522,-180.876735,0.00013698,2]
[361611834,1747639846531,-401.1202433,0.00013698,2]
[361611835,1747639846542,-151.0,0.00013698,2]
[361611836,1747639846551,-151.0,0.00013698,2]
[361611837,1747639846561,-420.0,0.00013698,2]
[361611838,1747639846570,-1326.87,0.00013698,2]
[361611839,1747639846580,-420.0,0.00013698,2]
[361611840,1747639846590,-997.479367,0.00013698,2]
[361611842,1747639846599,-420.0,0.00013698,2]
[361611844,1747639846608,-180.876735,0.00013698,2]
[361611845,1747639846618,-180.876735,0.00013698,2]
[361611846,1747639846627,-420.0,0.00013698,2]
[361611847,1747639846637,-420.0,0.00013698,2]
[361611848,1747639846647,-420.0,0.00013698,2]
[361611849,1747639846656,-193.23648156,0.00013698,2]
[361611850,1747639846666,-420.0,0.00013698,2]
[361611851,1747639846676,-1096.46,0.00013698,2]
[361611852,1747639846685,-420.0,0.00013698,2]
[361611853,1747639846695,-420.0,0.00013698,2]
[361611854,1747639846705,-420.0,0.00013698,2]
[361611855,1747639846714,-420.0,0.00013698,2]
[361611856,1747639846723,-481.48,0.00013698,2]
[361611857,1747639846733,-494.73,0.00013698,2]
[361611858,1747639846742,-151.0,0.00013698,2]
[361611859,1747639846752,-700.33,0.00013698,2]
[361611860,1747639846764,-281.233781,0.00013698,2]
[361611861,1747639846774,-420.0,0.00013698,2]
[361611862,1747639846783,-522.14,0.00013698,2]
[361611863,1747639846792,-420.0,0.00013698,2]
[361611864,1747639846802,-523.87,0.00013698,2]
[361611865,1747639846811,-593.19,0.00013698,2]
[361611866,1747639846820,-1171.817849,0.00013698,2]
[361611867,1747639846830,-420.0,0.00013698,2]
[361611868,1747639846839,-1384.09,0.00013698,2]
[361611869,1747639846849,-420.0,0.00013698,2]
[361611870,1747639846858,-420.0,0.00013698,2]
[361611871,1747639846867,-420.0,0.00013698,2]
[361611873,1747639846876,-420.0,0.00013698,2]
[361611875,1747639846886,-420.0,0.00013698,2]
[361611877,1747639846895,-498.17,0.00013698,2]
[361611878,1747639846904,-402.10532004,0.00013698,2]
[361611880,1747639846913,-578.96,0.00013698,2]
[361611882,1747639846922,-400.57752208,0.00013698,2]
[361611884,1747639846931,-1050.71,0.00013698,2]
[361611886,1747639846940,-400.0,0.00013698,2]
[361611888,1747639846950,-420.0,0.00013698,2]
[361611890,1747639846959,-420.0,0.00013698,2]
[361611891,1747639846968,-531.19,0.00013698,2]
[361611893,1747639846977,-202.46276,0.00013698,2]
[361611895,1747639846987,-420.0,0.00013698,2]
[361611897,1747639846996,-716.0,0.00013698,2]
[361611899,1747639847010,-1110.2,0.00013698,2]
[361611901,1747639847019,-151.0,0.00013698,2]
[361611902,1747639847028,-151.0,0.00013698,2]
[361611904,1747639847039,-400.0,0.00013698,2]
[361611906,1747639847048,-420.0,0.00013698,2]
[361611908,1747639847058,-420.0,0.00013698,2]
[361611910,1747639847068,-151.380315,0.00013698,2]
[361611911,1747639847078,-471.51,0.00013698,2]
[361611913,1747639847087,-188.91490901,0.00013698,2]
[361611915,1747639847096,-420.0,0.00013698,2]
[361611916,1747639847105,-300.55071238,0.00013698,2]
[361611917,1747639847114,-716.4,0.00013698,2]
[361611918,1747639847123,-151.0,0.00013698,2]
[361611919,1747639847132,-151.0,0.00013698,2]
[361611920,1747639847142,-151.0,0.00013698,2]
[361611921,1747639847151,-151.0,0.00013698,2]
[361611922,1747639847160,-151.0,0.00013698,2]
[361611923,1747639847169,-401.03288202,0.00013698,2]
[361611924,1747639847179,-420.0,0.00013698,2]
[361611925,1747639847188,-390.90981501,0.00013698,2]
[361611926,1747639847198,-420.0,0.00013698,2]
[361611927,1747639847207,-420.0,0.00013698,2]
[361611928,1747639847216,-420.0,0.00013698,2]
[361611929,1747639847226,-151.0,0.00013698,2]
[361611930,1747639847235,-889.38,0.00013698,2]
[361611931,1747639847244,-291.836835,0.00013698,2]
[361611932,1747639847253,-420.0,0.00013698,2]
[361611933,1747639847264,-403.80813653,0.00013698,2]
[361611934,1747639847273,-420.0,0.00013698,2]
[361611935,1747639847282,-420.0,0.00013698,2]
[361611936,1747639847291,-420.0,0.00013698,2]
[361611937,1747639847300,-725.64,0.00013698,2]
[361611938,1747639847309,-400.0,0.00013698,2]
[361611939,1747639847318,-526.84,0.00013698,2]
[361611940,1747639847327,-1249.633478,0.00013698,2]
[361611941,1747639847336,-420.0,0.00013698,2]
[361611942,1747639847345,-420.0,0.00013698,2]
[361611943,1747639847354,-420.0,0.00013698,2]
[361611944,1747639847363,-657.41,0.00013698,2]
[361611945,1747639847373,-540.33,0.00013698,2]
[361611946,1747639847383,-402.25060091,0.00013698,2]
[361611947,1747639847393,-420.0,0.00013698,2]
[361611948,1747639847404,-400.0,0.00013698,2]
[361611949,1747639847414,-420.0,0.00013698,2]
[361611950,1747639847424,-818.67,0.00013698,2]
[361611951,1747639847433,-420.0,0.00013698,2]
[361611952,1747639847443,-420.0,0.00013698,2]
[361611953,1747639847453,-639.6,0.00013698,2]
[361611954,1747639847462,-420.0,0.00013698,2]
[361611955,1747639847471,-486.46,0.00013698,2]
[361611956,1747639847482,-1210.33,0.00013698,2]
[361611957,1747639847492,-815.15,0.00013698,2]
[361611958,1747639847502,-439.11526405,0.00013698,2]
[361611959,1747639847513,-151.0,0.00013698,2]
[361611960,1747639847522,-151.0,0.00013698,2]
[361611961,1747639847531,-151.0,0.00013698,2]
[361611962,1747639847540,-1230.490004,0.00013698,2]
[361611963,1747639847549,-151.0,0.00013698,2]
[361611964,1747639847558,-151.0,0.00013698,2]
[361611965,1747639847567,-420.0,0.00013698,2]
[361611966,1747639847576,-151.0,0.00013698,2]
[361611967,1747639847587,-420.0,0.00013698,2]
[361611968,1747639847596,-151.0,0.00013698,2]
[361611969,1747639847606,-151.0,0.00013698,2]
[361611970,1747639847616,-151.0,0.00013698,2]
[361611971,1747639847626,-420.0,0.00013698,2]
[361611972,1747639847635,-151.0,0.00013698,2]
[361611973,1747639847644,-151.0,0.00013698,2]
[361611974,1747639847653,-151.0,0.00013698,2]
[361611975,1747639847662,-151.0,0.00013698,2]
[361611976,1747639847671,-942.48,0.00013698,2]
[361611977,1747639847679,-151.0,0.00013698,2]
[361611978,1747639847688,-420.0,0.00013698,2]
[361611979,1747639847697,-151.0,0.00013698,2]
[361611980,1747639847706,-198.0,0.00013698,2]
[361611981,1747639847715,-546.58406269,0.00013698,2]
[361611982,1747639847724,-565.3,0.00013698,2]
[361611983,1747639847733,-420.0,0.00013698,2]
[361611984,1747639847742,-151.0,0.00013698,2]
[361611985,1747639847751,-560.25720177,0.00013698,2]
[361611986,1747639847761,-159.200624,0.00013698,2]
[361611987,1747639847770,-156.5767621,0.00013698,2]
[361611988,1747639847779,-420.0,0.00013698,2]
[361611989,1747639847788,-420.0,0.00013698,2]
[361611990,1747639847797,-420.0,0.00013698,2]
[361611991,1747639847806,-420.0,0.00013698,2]
[361611992,1747639847815,-420.0,0.00013698,2]
[361611993,1747639847824,-1539.05,0.00013698,2]
[361611994,1747639847832,-420.0,0.00013698,2]
[361611995,1747639847842,-406.61940126,0.00013698,2]
[361611996,1747639847851,-1139.453021,0.00013698,2]
[361611997,1747639847865,-671.7,0.00013698,2]
[361611998,1747639847876,-420.0,0.00013698,2]
[361611999,1747639847887,-870.06,0.00013698,2]
[361612000,1747639847896,-151.0,0.00013698,2]
[361612001,1747639847906,-420.0,0.00013698,2]
[361612002,1747639847915,-1099.2,0.00013698,2]
[361612003,1747639847925,-420.0,0.00013698,2]
[361612004,1747639847936,-998.91,0.00013698,2]
[361612005,1747639847945,-1183.55,0.00013698,2]
[361612006,1747639847954,-400.0,0.00013698,2]
[361612007,1747639847963,-420.0,0.00013698,2]
[361612008,1747639847972,-420.0,0.00013698,2]
[361612009,1747639847981,-151.0,0.00013698,2]
[361612010,1747639847991,-151.0,0.00013698,2]
[361612011,1747639848006,-151.0,0.00013698,2]
[361612012,1747639848015,-420.0,0.00013698,2]
[361612013,1747639848025,-151.0,0.00013698,2]
[361612014,1747639848034,-151.0,0.00013698,2]
[361612015,1747639848044,-557.18,0.00013698,2]
[361612016,1747639848053,-941.38,0.00013698,2]
[361612017,1747639848063,-151.0,0.00013698,2]
[361612018,1747639848072,-151.742381,0.00013698,2]
[361612019,1747639848082,-155.38367855,0.00013698,2]
[361612020,1747639848091,-778.8,0.00013698,2]
[361612021,1747639848100,-420.0,0.00013698,2]
[361612022,1747639848110,-1007.713418,0.00013698,2]
[361612023,1747639848119,-1992.01,0.00013698,2]
[361612024,1747639848128,-420.0,0.00013698,2]
[361612025,1747639848137,-420.0,0.00013698,2]
[361612026,1747639848146,-555.69,0.00013698,2]
[361612027,1747639848156,-1424.76,0.00013698,2]
[361612028,1747639848165,-151.0,0.00013698,2]
[361612029,1747639848174,-182.118076,0.00013698,2]
[361612030,1747639848184,-151.0,0.00013698,2]
[361612031,1747639848193,-286.588705,0.00013698,2]
[361612032,1747639848202,-401.46719586,0.00013698,2]
[361612033,1747639848211,-182.118076,0.00013698,2]
[361612034,1747639848221,-182.118076,0.00013698,2]
[361612035,1747639848231,-182.118076,0.00013698,2]
[361612036,1747639848240,-182.118076,0.00013698,2]
[361612037,1747639848251,-400.0,0.00013698,2]
[361612038,1747639848261,-490.47,0.00013698,2]
[361612039,1747639848271,-400.0,0.00013698,2]
[361612040,1747639848280,-420.0,0.00013698,2]
[361612041,1747639848290,-182.118076,0.00013698,2]
[361612042,1747639848300,-400.0,0.00013698,2]
[361612043,1747639848310,-182.118076,0.00013698,2]
[361612044,1747639848319,-182.118076,0.00013698,2]
[361612045,1747639848328,-182.118076,0.00013698,2]
[361612046,1747639848337,-420.0,0.00013698,2]
[361612047,1747639848347,-182.118076,0.00013698,2]
[361612048,1747639848356,-400.81043563,0.00013698,2]
[361612049,1747639848366,-449.85,0.00013698,2]
[361612050,1747639848375,-420.0,0.00013698,2]
[361612051,1747639848384,-420.0,0.00013698,2]
[361612052,1747639848393,-874.593793,0.00013698,2]
[361612053,1747639848402,-400.0,0.00013698,2]
[361612054,1747639848411,-420.0,0.00013698,2]
[361612055,1747639848420,-458.38,0.00013698,2]
[361612056,1747639848430,-400.0,0.00013698,2]
[361612057,1747639848439,-483.78755498,0.00013698,2]
[361612058,1747639848449,-420.0,0.00013698,2]
[361612059,1747639848458,-420.0,0.00013698,2]
[361612060,1747639848468,-420.0,0.00013698,2]
[361612061,1747639848477,-473.64,0.00013698,2]
[361612062,1747639848487,-420.0,0.00013698,2]
[361612063,1747639848496,-400.53237311,0.00013698,2]
[361612064,1747639848506,-420.0,0.00013698,2]
[361612065,1747639848515,-420.0,0.00013698,2]
[361612066,1747639848525,-642.78,0.00013698,2]
[361612067,1747639848534,-420.0,0.00013698,2]
[361612068,1747639848544,-397.3076851,0.00013698,2]
[361612069,1747639848553,-343.37,0.00013698,2]
[361612070,1747639848562,-165.67030422,0.00013698,2]
[361612071,1747639848571,-420.0,0.00013698,2]
[361612072,1747639848580,-583.22,0.00013698,2]
[361612073,1747639848590,-151.0,0.00013698,2]
[361612074,1747639848599,-151.0,0.00013698,2]
[361612075,1747639848608,-420.0,0.00013698,2]
[361612076,1747639848617,-151.51693,0.00013698,2]
[361612077,1747639848626,-400.0,0.00013698,2]
[361612078,1747639848635,-403.83171747,0.00013698,2]
[361612079,1747639848644,-494.1,0.00013698,2]
[361612080,1747639848654,-473.88,0.00013698,2]
[361612081,1747639848664,-420.0,0.00013698,2]
[361612082,1747639848673,-400.34836304,0.00013698,2]
[361612083,1747639848682,-420.0,0.00013698,2]
[361612084,1747639848692,-420.0,0.00013698,2]
[361612085,1747639848701,-151.0,0.00013698,2]
[361612086,1747639848710,-151.0,0.00013698,2]
[361612087,1747639848719,-151.0,0.00013698,2]
[361612088,1747639848728,-151.0,0.00013698,2]
[361612089,1747639848738,-420.0,0.00013698,2]
[361612090,1747639848748,-210.440053,0.00013698,2]
[361612091,1747639848757,-886.39,0.00013698,2]
[361612092,1747639848766,-1320.87,0.00013698,2]
[361612093,1747639848775,-420.0,0.00013698,2]
[361612094,1747639848785,-400.0,0.00013698,2]
[361612095,1747639848795,-1964.75,0.00013698,2]
[361612096,1747639848804,-380.0,0.00013698,2]
[361612097,1747639848813,-761.9,0.00013698,2]
[361612098,1747639848822,-562.09,0.00013698,2]
[361612099,1747639848831,-531.94,0.00013698,2]
[361612100,1747639848841,-420.0,0.00013698,2]
[361612101,1747639848850,-400.0,0.00013698,2]
[361612102,1747639848859,-420.0,0.00013698,2]
[361612103,1747639848869,-420.0,0.00013698,2]
[361612104,1747639848878,-420.0,0.00013698,2]
[361612105,1747639848887,-1060.88,0.00013698,2]
[361612106,1747639848896,-1380.85,0.00013698,2]
[361612107,1747639848906,-5050.0,0.00013698,2]
[361612108,1747639848916,-420.0,0.00013698,2]
[361612109,1747639848925,-8485.96,0.00013698,2]
[361612110,1747639848934,-380.0,0.00013698,2]
[361612111,1747639848943,-402.93115769,0.00013698,2]
[361612112,1747639848953,-1009.91,0.00013698,2]
[361612113,1747639848962,-976.01,0.00013698,2]
[361612114,1747639848971,-2221.62,0.00013698,2]
[361612115,1747639848980,-420.0,0.00013698,2]
[361612116,1747639848989,-490.34,0.00013698,2]
[361612117,1747639849002,-287.00498643,0.00013698,2]
[361612118,1747639849011,-500.0,0.00013698,2]
[361612119,1747639849020,-500.0,0.00013698,2]
[361612120,1747639849030,-420.0,0.00013698,2]
[361612121,1747639849039,-400.0,0.00013698,2]
[361612122,1747639849049,-420.0,0.00013698,2]
[361612123,1747639849060,-420.0,0.00013698,2]
[361612124,1747639849069,-629.67,0.00013698,2]
[361612125,1747639849079,-754.79157,0.00013698,2]
[361612126,1747639849089,-1069.86,0.00013698,2]
[361612127,1747639849098,-420.0,0.00013698,2]
[361612128,1747639849107,-400.0,0.00013698,2]
[361612129,1747639849116,-420.0,0.00013698,2]
[361612130,1747639849125,-1400.98,0.00013698,2]
[361612131,1747639849135,-1141.28,0.00013698,2]
[361612132,1747639849144,-420.0,0.00013698,2]
[361612133,1747639849154,-657.12,0.00013698,2]
[361612134,1747639849164,-151.0,0.00013698,2]
[361612135,1747639849174,-151.0,0.00013698,2]
[361612136,1747639849183,-151.0,0.00013698,2]
[361612137,1747639849193,-558.79,0.00013698,2]
[361612138,1747639849203,-551.13,0.00013698,2]
[361612139,1747639849212,-497.73,0.00013698,2]
[361612140,1747639849222,-842.96,0.00013698,2]
[361612141,1747639849232,-409.73887982,0.00013698,2]
[361612142,1747639849242,-896.62,0.00013698,2]
[361612143,1747639849255,-500.0,0.00013698,2]
[361612144,1747639849265,-557.67,0.00013698,2]
[361612145,1747639849275,-557.67,0.00013698,2]
[361612146,1747639849285,-557.67,0.00013698,2]
[361612147,1747639849295,-557.67,0.00013698,2]
[361612148,1747639849307,-557.67,0.00013698,2]
[361612149,1747639849316,-557.67,0.00013698,2]
[361612150,1747639849326,-541.87,0.00013698,2]
[361612151,1747639849336,-400.43272338,0.00013698,2]
[361612152,1747639849346,-557.67,0.00013698,2]
[361612153,1747639849355,-5046.1,0.00013698,2]
[361612154,1747639849365,-553.48,0.00013698,2]
[361612155,1747639849375,-654.92,0.00013698,2]
[361612156,1747639849384,-567.46,0.00013698,2]
[361612157,1747639849395,-420.0,0.00013698,2]
[361612158,1747639849404,-4675.089314,0.00013698,2]
[361612159,1747639849414,-420.0,0.00013698,2]
[361612160,1747639849428,-420.0,0.00013698,2]
[361612161,1747639849438,-4675.089314,0.00013698,2]
[361612162,1747639849447,-4675.089314,0.00013698,2]
[361612163,1747639849457,-597.56,0.00013698,2]
[361612164,1747639849467,-4675.089314,0.00013698,2]
[361612165,1747639849477,-4675.089314,0.00013698,2]
[361612166,1747639849487,-1078.38,0.00013698,2]
[361612167,1747639849497,-420.0,0.00013698,2]
[361612168,1747639849506,-1546.09,0.00013698,2]
[361612169,1747639849516,-4675.089314,0.00013698,2]
[361612170,1747639849527,-692.280957,0.00013698,2]
[361612171,1747639849537,-4675.089314,0.00013698,2]
[361612172,1747639849547,-401.91926841,0.00013698,2]
[361612173,1747639849557,-4675.089314,0.00013698,2]
[361612174,1747639849567,-4675.089314,0.00013698,2]
[361612175,1747639849577,-420.0,0.00013698,2]
[361612176,1747639849802,-1183.74,0.00013698,2]
[361612177,1747639849813,-653.46,0.00013698,2]
[361612178,1747639849822,-4675.089314,0.00013698,2]
[361612179,1747639849832,-201002.83,0.00013698,2]
[361612180,1747639849842,-1424.44,0.00013698,2]
[361612181,1747639849852,-410.27691542,0.00013698,2]
[361612182,1747639849862,-1171.81,0.00013698,2]
[361612183,1747639849872,-420.0,0.00013698,2]
[361612184,1747639849881,-420.0,0.00013698,2]
[361612185,1747639849892,-400.0,0.00013698,2]
[361612186,1747639849902,-1394.0,0.00013698,2]
[361612187,1747639849911,-3153.02,0.00013698,2]
[361612188,1747639849921,-151.0,0.00013698,2]
[361612189,1747639849931,-151.0,0.00013698,2]
[361612190,1747639849941,-151.0,0.00013698,2]
[361612191,1747639849950,-1506.43,0.00013698,2]
[361612192,1747639849960,-151.0,0.00013698,2]
[361612193,1747639849969,-572.06,0.00013698,2]
[361612194,1747639849978,-629.97,0.00013698,2]
[361612195,1747639849988,-400.56212363,0.00013698,2]
[361612196,1747639850000,-1475.96,0.00013698,2]
[361612197,1747639850011,-420.0,0.00013698,2]
[361612198,1747639850020,-1894.61,0.00013698,2]
[361612199,1747639850030,-420.0,0.00013698,2]
[361612200,1747639850039,-420.0,0.00013698,2]
[361612201,1747639850048,-420.0,0.00013698,2]
[361612202,1747639850057,-500.0,0.00013698,2]
[361612203,1747639850067,-501.07560789,0.00013698,2]
[361612204,1747639850076,-489.16263838,0.00013698,2]
[361612205,1747639850086,-420.0,0.00013698,2]
[361612206,1747639850095,-420.0,0.00013698,2]
[361612207,1747639850104,-795.84,0.00013698,2]
[361612208,1747639850114,-420.0,0.00013698,2]
[361612209,1747639850123,-420.0,0.00013698,2]
[361612210,1747639850133,-387.38,0.00013698,2]
[361612211,1747639850142,-420.0,0.00013698,2]
[361612212,1747639850152,-669.8,0.00013698,2]
[361612213,1747639850162,-152.916906,0.00013698,2]
[361612214,1747639850171,-380.0,0.00013698,2]
[361612215,1747639850181,-1007.81,0.00013698,2]
[361612216,1747639850190,-392.24378495,0.00013698,2]
[361612217,1747639850200,-761.3,0.00013698,2]
[361612218,1747639850210,-767.19,0.00013698,2]
[361612219,1747639850219,-420.0,0.00013698,2]
[361612220,1747639850229,-420.0,0.00013698,2]
[361612221,1747639850239,-9031.63,0.00013698,2]
[361612222,1747639850249,-420.0,0.00013698,2]
[361612223,1747639850259,-594.39,0.00013698,2]
[361612224,1747639850268,-420.0,0.00013698,2]
[361612225,1747639850278,-420.0,0.00013698,2]
[361612226,1747639850288,-420.0,0.00013698,2]
[361612227,1747639850298,-500.72672628,0.00013698,2]
[361612228,1747639850307,-420.0,0.00013698,2]
[361612229,1747639850317,-1174.49,0.00013698,2]
[361612230,1747639850327,-400.0,0.00013698,2]
[361612231,1747639850337,-7658.09,0.00013698,2]
[361612232,1747639850347,-737.07,0.00013698,2]
[361612233,1747639850357,-13669.44,0.00013698,2]
[361612234,1747639850367,-420.0,0.00013698,2]
[361612235,1747639850376,-622.71,0.00013698,2]
[361612236,1747639850387,-420.0,0.00013698,2]
[361612237,1747639850397,-4248.12,0.00013698,2]
[361612238,1747639850406,-420.0,0.00013698,2]
[361612239,1747639850416,-1469.06,0.00013698,2]
[361612240,1747639850426,-400.0,0.00013698,2]
[361612241,1747639850436,-400.82249255,0.00013698,2]
[361612242,1747639850446,-420.0,0.00013698,2]
[361612243,1747639850456,-194.85931678,0.00013698,2]
[361612244,1747639850466,-462.05,0.00013698,2]
[361612245,1747639850476,-9933.19,0.00013698,2]
[361612246,1747639850486,-400.20646479,0.00013698,2]
[361612247,1747639850496,-380.0,0.00013698,2]
[361612248,1747639850506,-574.95,0.00013698,2]
[361612249,1747639850515,-93973.96,0.00013698,2]
[361612250,1747639850525,-420.0,0.00013698,2]
[361612251,1747639850534,-400.0,0.00013698,2]
[361612252,1747639850544,-1022.12,0.00013698,2]
[361612253,1747639850553,-420.0,0.00013698,2]
[361612254,1747639850562,-401.89653009,0.00013698,2]
[361612255,1747639850572,-420.0,0.00013698,2]
[361612256,1747639850581,-443.93323192,0.00013698,2]
[361612257,1747639850591,-1409.56,0.00013698,2]
[361612258,1747639850600,-2806.34,0.00013698,2]
[361612259,1747639850610,-1074.91,0.00013698,2]
[361612260,1747639850619,-420.0,0.00013698,2]
[361612261,1747639850629,-2687.13,0.00013698,2]
[361612262,1747639850640,-400.0,0.00013698,2]
[361612263,1747639850650,-420.0,0.00013698,2]
[361612264,1747639850660,-420.0,0.00013698,2]
[361612265,1747639850670,-390.3483187,0.00013698,2]
[361612266,1747639850679,-420.0,0.00013698,2]
[361612267,1747639850689,-420.0,0.00013698,2]
[361612268,1747639850699,-875.78,0.00013698,2]
[361612269,1747639850708,-3327.94,0.00013698,2]
[361612270,1747639850718,-420.0,0.00013698,2]
[361612271,1747639850727,-1114.59,0.00013698,2]
[361612272,1747639850736,-19638.65,0.00013698,2]
[361612273,1747639850747,-526.65,0.00013698,2]
[361612274,1747639850757,-3104.95,0.00013698,2]
[361612275,1747639850767,-441.80007282,0.00013698,2]
[361612276,1747639850777,-1471.81,0.00013698,2]
[361612277,1747639850787,-406.72939467,0.00013698,2]
[361612278,1747639850797,-420.0,0.00013698,2]
[361612279,1747639850806,-400.316295,0.00013698,2]
[361612280,1747639850816,-1328.76,0.00013698,2]
[361612281,1747639850826,-807.27,0.00013698,2]
[361612282,1747639850835,-500.0,0.00013698,2]
[361612283,1747639850845,-1310.03,0.00013698,2]
[361612284,1747639850855,-512.76,0.00013698,2]
[361612285,1747639850865,-420.0,0.00013698,2]
[361612286,1747639850875,-420.0,0.00013698,2]
[361612287,1747639850885,-420.0,0.00013698,2]
[361612288,1747639850894,-420.0,0.00013698,2]
[361612289,1747639850904,-400.0,0.00013698,2]
[361612290,1747639850914,-1411.09,0.00013698,2]
[361612291,1747639850924,-420.0,0.00013698,2]
[361612292,1747639850934,-151.0,0.00013698,2]
[361612293,1747639850943,-151.0,0.00013698,2]
[361612294,1747639850953,-400.0,0.00013698,2]
[361612295,1747639850963,-151.0,0.00013698,2]
[361612296,1747639850973,-151.0,0.00013698,2]
[361612297,1747639850983,-420.0,0.00013698,2]
[361612298,1747639850993,-657.78,0.00013698,2]
[361612299,1747639851007,-420.0,0.00013698,2]
[361612300,1747639851017,-403.04689367,0.00013698,2]
[361612301,1747639851027,-420.0,0.00013698,2]
[361612302,1747639851037,-584.41,0.00013698,2]
[361612303,1747639851047,-1411.58,0.00013698,2]
[361612304,1747639851057,-420.0,0.00013698,2]
[361612305,1747639851066,-1211.15,0.00013698,2]
[361612306,1747639851078,-791.72,0.00013698,2]
[361612307,1747639851088,-95.4663586,0.00013698,2]
[361612308,1747639851160,-500.36914172,0.00013698,2]
[361612309,1747639851172,-1411.29449968,0.00013698,2]
[361612310,1747639851182,-420.0,0.00013698,2]
[361612311,1747639851192,-2182.70550032,0.00013698,2]
[361612312,1747639851204,-513.01449968,0.00013698,2]
[361612313,1747639851214,-513.37480269,0.00013698,2]
[361612314,1747639851223,-420.0,0.00013698,2]
[361612315,1747639851233,-1240.13,0.00013698,2]
[361612316,1747639851243,-151.0,0.00013698,2]
[361612317,1747639851252,-151.0,0.00013698,2]
[361612318,1747639851262,-1146.83,0.00013698,2]